Cogmind - Beta 14 @@@ ROGUE MODE // 2024.12.09 @ 17:29:33 Player: Shiba Result: Destroyed by as-37633 with Assembled Heavy Rifle Performance ------------- Evolutions (1) 500 Regions Visited (3) 600 Robots Destroyed (19) 95 Value Destroyed (376) 376 Prototype IDs (0) 0 Alien Tech Used (0) 0 Bonus (0) 0 TOTAL SCORE: 1571 Bonus ------- None Cogmind --------- Core Integrity 0/400 Matter 124/300 Energy 98/100 System Corruption 4% Temperature Cool (0) Movement Core (50) Location -9/Mines Parts ------- > --- POWER (1) -------- (None) > --- PROPULSION (3) --- (None) > --- UTILITY (2) ------ (None) > --- WEAPON (3) ------- (None) > --- INVENTORY (5) ---- Improved Terrain Scanner Hardened Light Armor Plating Hardened Light Armor Plating Light Assault Rifle Katana Peak State ------------ > --- POWER ------------ Deuterium Engine > --- PROPULSION ------- Light Treads Light Treads Light Treads > --- UTILITY ---------- Huge Storage Unit Seismic Detector > --- WEAPON ----------- Light Assault Rifle Heavy Assault Rifle Rocket Launcher > --- INVENTORY -------- Improved Ion Engine Deuterium Engine Deuterium Engine Deuterium Engine Light Treads Aluminum Leg Aluminum Leg Large Storage Unit Large Storage Unit Improved Terrain Scanner Seismic Detector Seismic Detector Hardened Light Armor Plating Hardened Light Armor Plating Hardened Light Armor Plating Hardened Light Armor Plating Assault Rifle Light Assault Rifle Light Assault Rifle Grenade Launcher Datajack Katana Katana Katana Katana [Rating: 17] Favorites ----------- Power Light Ion Engine Engine Light Ion Engine Propulsion Light Treads Treads Light Treads Leg Aluminum Leg Utility Seismic Detector Device Seismic Detector Storage Huge Storage Unit Weapon Light Assault Rifle Energy Gun Small Laser Ballistic Gun Light Assault Rifle Launcher Rocket Launcher Build | -11 -10 -9 -9 ------- Run | Yrd Mat Mat Min Slots Evolved 2 | . . 2 . Power . | . . . . Propulsion 1 | . . 1 . Utility . | . . . . Weapon 1 | . . 1 . Parts Attached 32 | 7 9 10 6 Power 4 | 1 . 3 . Engine 4 | 1 . 3 . Core . | . . . . Reactor . | . . . . Propulsion 9 | 2 2 2 3 Treads 7 | 2 2 2 1 Leg 2 | . . . 2 Wheel . | . . . . Hover . | . . . . Flight . | . . . . Utility 6 | 2 3 . 1 Device 2 | 1 1 . . Storage 4 | 1 2 . 1 Processor . | . . . . Hackware . | . . . . Protection . | . . . . Artifact . | . . . . Weapon 13 | 2 4 5 2 Energy Gun 1 | 1 . . . Energy Cannon . | . . . . Ballistic Gun 10 | 1 4 4 1 Ballistic Cannon . | . . . . Launcher 2 | . . 1 1 Special Weapon . | . . . . Impact Weapon . | . . . . Slashing Weapon . | . . . . Piercing Weapon . | . . . . Special Melee Weapon . | . . . . Unidentified Prototypes . | . . . . Parts Lost 9 | . . . 9 Power 1 | . . . 1 Propulsion 4 | . . . 4 Utility 1 | . . . 1 Weapon 3 | . . . 3 Highest Loss Streak 7 | . . . 7 To Critical Strikes . | . . . . Average Slot Usage (%) 98 | . 100 100 72 Engine 12 | . 14 11 8 Treads 30 | . 28 33 24 Device 11 | . 14 11 4 Storage 12 | . 14 11 9 Energy Gun 1 | . 3 . . Ballistic Gun 27 | . 24 33 18 Peak Build Rating 17 | 7 9 17 17 Average Rating 10 | 5 8 13 13 On Entrance 8 | . 7 9 16 Naked Turns 12 | . . . 12 Heaviest Build 99 | 11 87 96 99 Greatest Support 60 | 40 40 60 60 Greatest Overweight (x) 2 | 1 2 1 1 Average Overweight (x) . | . . 1 . Largest Inventory Capacity 25 | 8 25 25 25 Average Capacity 20 | 7 17 25 22 Most Carried 25 | 7 19 25 25 Average Carried 17 | 4 13 22 21 Final Capacity 25 | 8 25 25 5 Final Carried 25 | 7 19 25 5 Class Distribution -------------------- 51% | Mutant 26% | Gunner 22% | Scavenger-Gunner Dominant Class ---------------- Mutant | -10/Materials Scavenger-Gunner | -9/Materials Gunner | -9/Mines Resources | -11 -10 -9 -9 ----------- Run | Yrd Mat Mat Min Matter Collected 632 | 277 71 254 30 Remotely . | . . . . Salvage Created 682 | 111 155 362 54 Parts 41 | 5 13 21 2 Haulers Intercepted . | . . . . Recyclers Shooed . | . . . . Parts Field Recycled . | . . . . Retrieved Matter . | . . . . Parts Self-Destructed . | . . . . Prevented . | . . . . Kills | -11 -10 -9 -9 ------- Run | Yrd Mat Mat Min Combat Hostiles Destroyed 30 | . 5 8 17 Guns 18 | . 5 8 5 AOE 12 | . . . 12 Classes Destroyed 9 | 2 4 1 2 Builder 1 | . . . 1 Tunneler 1 | 1 . . . Recycler 2 | 1 . 1 . Operator 1 | . 1 . . Watcher 1 | . 1 . . Swarmer 6 | . 3 3 . Grunt 5 | . 2 3 . Sentry 2 | . . 2 . Assembled 17 | . . . 17 Best Kill Streak 18 | 1 3 3 18 Combat Bots Only 17 | . 3 3 17 Max Kills in Single Turn 5 | 1 2 2 5 Gunslinging 1 | . 1 1 . Exploded 4 | . . . 4 Melee . | . . . . Uniques/NPCs Destroyed . | . . . . Combat | -11 -10 -9 -9 -------- Run | Yrd Mat Mat Min Hostile Shots Fired 153 | . 39 45 69 Missed 39 | . 13 8 18 Damage Taken 1863 | . 214 414 1235 Core 448 | . 39 88 321 Absorbed by Shields . | . . . . Core Remaining (%) 92 | 100 84 . . Volleys Fired 60 | 7 20 21 12 Largest 3 | 2 2 3 3 Hottest 76 | 60 60 63 76 Shots Fired 148 | 14 40 63 31 Gun 141 | 14 40 63 24 Cannon . | . . . . Launcher 7 | . . . 7 Special . | . . . . Kinetic 128 | 7 34 63 24 Thermal 13 | 7 6 . . Explosive 7 | . . . 7 Electromagnetic . | . . . . Robot Hit Streak 13 | 7 6 13 4 Robot Miss Streak 4 | 3 3 3 4 Penetration Max . | . . . . Secondary Targets 3 | . 1 2 . Max Gunslinging Chain 1 | . 1 1 . Shots Hit Robots 89 | 9 23 47 10 Core Hits 64 | 5 11 18 30 Critical Kills 1 | . . 1 . Critical Parts Destroyed . | . . . . Critical Strikes 1 | . . 1 . Destroy 1 | . . 1 . Melee Attacks . | . . . . Impact . | . . . . Slashing . | . . . . Piercing . | . . . . Sneak Attacks . | . . . . Combat Hostiles . | . . . . Follow-up Attacks . | . . . . Damage Inflicted 1854 | 92 242 444 1076 Guns 950 | 91 242 443 174 Cannons . | . . . . Explosions 902 | . . . 902 Melee . | . . . . Ramming 2 | 1 . 1 . Kinetic 860 | 35 208 443 174 Thermal 90 | 56 34 . . Explosive 902 | . . . 902 Electromagnetic . | . . . . Impact . | . . . . Slashing . | . . . . Piercing . | . . . . Highest Corruption 4 | . . . 4 Average Corruption 4 | . . . 4 Corruption Purged . | . . . . Corruption Blocked . | . . . . Effects 2 | . . . 2 Energy Discharges 1 | . . . 1 Data Loss (minor) 1 | . . . 1 Overload Shots . | . . . . Overflow Damage 62 | . . . 62 Projectiles . | . . . . Explosions 62 | . . . 62 Melee . | . . . . Knockbacks . | . . . . Impact . | . . . . Kinetic . | . . . . Secondary . | . . . . Self-Inflicted Damage 114 | . . . 114 Shots 3 | . . . 3 Rammed 2 | 1 . 1 . Targets Rammed 3 | 1 1 1 . Kicked . | . . . . Crushed 1 | . 1 . . Highest Temperature 134 | 40 38 52 134 Average Temperature 38 | 19 18 18 85 Received Heat Transfer 212 | . 30 102 80 Siege Activations . | . . . . Robots Corrupted . | . . . . Combat Hostiles . | . . . . Parts Fried . | . . . . Impact Corruptions . | . . . . Robots Melted . | . . . . Combat Hostiles . | . . . . Parts Melted . | . . . . Heat Transferred 200 | 125 75 . . Parts Sabotaged . | . . . . Parts Stolen . | . . . . Parts Stripped . | . . . . Power Chain Reactions . | . . . . Alert | -11 -10 -9 -9 ------- Run | Yrd Mat Mat Min Peak Influence 183 | 10 122 183 57 Initial 25 | . 6 1 25 Average 35 | 2 40 35 28 Maximum Alert Level . | . . . . Low Security (%) 100 | 100 100 100 100 Level 1 . | . . . . Level 2 . | . . . . Level 3 . | . . . . Level 4 . | . . . . Level 5 . | . . . . High Security . | . . . . Max Security . | . . . . Squads Dispatched 4 | . 2 2 . Investigation 1 | . . 1 . Extermination . | . . . . Reinforcement 3 | . 2 1 . Assault . | . . . . Garrison . | . . . . Intercept . | . . . . Searches Triggered . | . . . . Construction Impeded . | . . . . Haulers Reinforced . | . . . . Active Scanning Responses . | . . . . Cargo Convoy Interrupts . | . . . . Stealth | -11 -10 -9 -9 --------- Run | Yrd Mat Mat Min Distress Signals 3 | . . 3 . Communications Jammed . | . . . . Distress Signals . | . . . . Times Spotted 46 | . 10 15 21 Peak Tracking Total 14 | . 5 4 14 Tactical Retreats . | . . . . Traps | -11 -10 -9 -9 ------- Run | Yrd Mat Mat Min Traps Triggered . | . . . . Indirectly . | . . . . Trap Hack Attempts . | . . . . Triggered . | . . . . Disarmed . | . . . . Reprogrammed . | . . . . Reused . | . . . . Traps Extracted . | . . . . Installed . | . . . . Triggered . | . . . . Machines | -11 -10 -9 -9 ---------- Run | Yrd Mat Mat Min Machines Disabled . | . . . . Max in Single Turn . | . . . . Machines Repaired . | . . . . Machines Dismantled . | . . . . Machines Sabotaged . | . . . . Overloaded Fab Kills . | . . . . Hacking | -11 -10 -9 -9 --------- Run | Yrd Mat Mat Min Machines Accessed 6 | . 4 2 . Terminals 5 | . 4 1 . Fabricators . | . . . . Repair Stations . | . . . . Recycling Units . | . . . . Scanalyzers 1 | . . 1 . Garrison Access . | . . . . Total Hacks 16 | . 12 4 . Successful 8 | . 5 3 . Failed 8 | . 7 1 . Catastrophic 1 | . 1 . . Database Lockouts . | . . . . Manual 4 | . 4 . . Terminals 14 | . 12 2 . Fabricators . | . . . . Repair Stations . | . . . . Recycling Units . | . . . . Scanalyzers 2 | . . 2 . Garrison Access . | . . . . Terminal Hacks 6 | . 5 1 . Alert Level 1 | . . 1 . Unreport Threat 1 | . 1 . . Locate Traps 3 | . 3 . . Zone Layout 1 | . 1 . . Fabricator Hacks . | . . . . Repair Station Hacks . | . . . . Recycling Unit Hacks . | . . . . Scanalyzer 2 | . . 2 . Insert Component 1 | . . 1 . Analyze 1 | . . 1 . Garrison Access Hacks . | . . . . Unauthorized Hacks . | . . . . Terminals . | . . . . Fabricators . | . . . . Repair Stations . | . . . . Recycling Units . | . . . . Scanalyzers . | . . . . Garrison Access . | . . . . Data Cores Recovered . | . . . . Used . | . . . . Hacking Detections 5 | . 4 1 . Full Trace Events . | . . . . Feedback Events . | . . . . Feedback Blocked . | . . . . Robot Schematics Acquired . | . . . . Robots Built . | . . . . Authchips . | . . . . Time . | . . . . Total Robot Build Rating . | . . . . Part Schematics Acquired 1 | . . 1 . Parts Built . | . . . . Authchips . | . . . . Time . | . . . . Total Part Build Rating . | . . . . Parts Repaired . | . . . . Time . | . . . . Parts Recycled . | . . . . Recycled Matter . | . . . . Retrieved Matter . | . . . . Retrieved Components . | . . . . Parts Scanalyzed 1 | . . 1 . Part Schematics Acquired 1 | . . 1 . Parts Damaged . | . . . . Bothacking | -11 -10 -9 -9 ------------ Run | Yrd Mat Mat Min Used RIF Installer . | . . . . Robots Hacked . | . . . . Non-combat . | . . . . Combat . | . . . . Robot Hacks Applied . | . . . . Relay Couplers Released . | . . . . Fabnet Peak Effective % . | . . . . Robots Rewired . | . . . . Allies Hacked . | . . . . Hacks Repelled . | . . . . Allies | -11 -10 -9 -9 -------- Run | Yrd Mat Mat Min Total Allies . | . . . . Largest Group . | . . . . Highest-Rated Group . | . . . . Highest-Rated Ally . | . . . . Total Orders . | . . . . Ally Attacks . | . . . . Total Damage . | . . . . Kills . | . . . . Allies Corrupted . | . . . . Allies Melted . | . . . . Intel | -11 -10 -9 -9 ------- Run | Yrd Mat Mat Min Robot Analysis Total . | . . . . Derelict Logs Recovered . | . . . . Drone Launches . | . . . . Drone Recoveries . | . . . . Exploration | -11 -10 -9 -9 ------------- Run | Yrd Mat Mat Min Turns Passed 2060 | 110 910 901 139 Spaces Moved 823 | 49 390 318 66 Core 33 | 7 . . 26 Treads 780 | 42 390 318 30 Legs 10 | . . . 10 Wheels . | . . . . Hover . | . . . . Flight . | . . . . Fastest Speed 50 | 50 160 240 50 Average Speed 204 | 147 193 240 145 Slowest Speed 320 | 160 320 240 240 Overloaded Moves . | . . . . Propulsion Burnouts . | . . . . Robots Hopped . | . . . . Cave-ins Triggered . | . . . . Exploration Rate (%) 27 | 4 64 21 22 Regions Visited 3 Branch Regions 1 Pre-discovered Areas . | . . . . Known Exits Taken . | . . . . Unknown Exits Taken 3 | 1 1 1 . Scrap Searched 1 | . . . 1 Spaces Dug . | . . . . Terrain Destroyed 60 | . . . 60 Melee . | . . . . Projectile . | . . . . AOE 60 | . . . 60 Terrain Rammed . | . . . . Walls Destroyed . | . . . . Machines Disabled . | . . . . Actions | -11 -10 -9 -9 --------- Run | Yrd Mat Mat Min Total 1083 | 70 509 418 86 Wait 129 | . 80 49 . Move 821 | 49 389 317 66 Hop . | . . . . Pick Up 25 | 7 7 11 . Fast Attach 7 | 7 . . . Attach 6 | . . 2 4 Detach . | . . . . Swap 19 | . 9 8 2 Drop 14 | . 3 9 2 Fire 60 | 7 20 21 12 Melee . | . . . . Ram . | . . . . Kick . | . . . . Crush 2 | . 1 1 . Escape Stasis . | . . . . Rewire . | . . . . Trap . | . . . . Miscellaneous . | . . . . Route ------- -11/Scrapyard -10/Materials (discovered 2 exits: *Mat / [*Min]) -9/Materials -9/Mines (discovered 1 exit: [*Mat]) History --------- Turn | Location | Event 9 | -11/Scrapyard | Discovered new exit (range 15) 111 | -11/Scrapyard | Entered Materials 303 | -10/Materials | Build established: Mutant 540 | -10/Materials | Discovered new exit (range 16) 967 | -10/Materials | Discovered new exit (range 16) 1021 | -10/Materials | Entered another Materials area 1021 | -9/Materials | Evolved 2 slots: Propulsion x1, Weapon x1 1330 | -9/Materials | Build established: Gunner 1700 | -9/Materials | Discovered new exit (range 14) 1776 | -9/Materials | Build established: Scavenger-Gunner 1922 | -9/Materials | Entered Mines 1949 | -9/Mines | Discovered new exit (range 12) 1962 | -9/Mines | Assembled infested the area 2034 | -9/Mines | Destroyed 17 combat bots 2035 | -9/Mines | Core integrity fell below 50% 2049 | -9/Mines | Released all parts (3) 2052 | -9/Mines | Core integrity fell below 20% 2061 | -9/Mines | Destroyed by as-37633 with Assembled Heavy Rifle Last Messages --------------- 02034_ Lgt. Treads destroyed. 02035_ The unstable cave ceiling collapses. 02035_ U-05 Engineer lays Concrete. 02035_ K-01 Serf collects debris. 02036_ U-05 Engineer destroyed. 02036_ Deuterium Engine destroyed. 02038_ K-01 Serf collects debris. 02038_ K-01 Serf destroyed. 02039_ The unstable cave ceiling collapses. 02040_ U-05 Engineer lays Concrete. 02042_ U-05 Engineer builds a Wall. 02042_ K-01 Serf collects debris. 02044_ System corrupted: Component data lost. 02045_ The unstable cave ceiling collapses. 02049_ Released Aluminum Leg. 02049_ Released Lrg. Storage Unit. 02051_ The unstable cave ceiling collapses. 02053_ Seismic Detector crushed. 02054_ as-37876 destroyed. 02060_ as-21320 destroyed. Map ----- +----------------------------------------------------+ | ?????????????????????????????????????????????????? | | ?????????????????????????????????????????????????? | | ?????????????????????????????????????????????????? | | ?????????????????????????????????????????????????? | | ?????????????????????????????????????????????????? | | ?????????????????????????????????????????????????? | | ?????????????????????????????????????????????????? | | ?????????????????????????????????????????????????? | | ?????????????????????????????????????????????????? | | ?????????????????????????????????????????????????? | | ?????????????????????????????????????????????????? | | ?????????????????????????????????????????????????? | | ?????????????????????????????????????????????????? | | ?????????????????????????###?????????????????????? | | ???????????????????????## ##????????????????????? | | ???????????????????????# ##???????????????????? | | ??????????????????????## #???????????????????? | | ?????????????????????## ! #???????????????????? | | ?????????????????????? =% #???????????????????? | | ?????????????????????? ##??????????????????? | | ??????????????????????# #??????????????????? | | ????????###??????????## #??????????????????? | | ?????? ## ##?????#### #???????????????????? | | ?????? ##???## #???????????????????? | | ?????? #??## < ##??????????????????? | | ?????# #??# @ ##?????????????????? | | ??????# ## ## #?????????????????? | | ????????# #### #????????????????? | | ###??????## # % ##?? #????????????????? | | ##??##?# #?? ##????????????????? | | #### ## ###?? #?????????????????? | | # ##????? #????????????????? | | # # #????? #???????????????? | | # */* #????? #???????????????? | | !!== #????? #???????????????? | | #//[ ###?????? #???????????????? | | ! ##??????? a ##???????????????? | | #??????? #????????????????? | | ## ##???????# ????????????????? | | ! ###### #?????????#?? ????????????????? | | ! ##????### #?????????????????????????????? | | ##???????## #????????????????????????????? | | ##?????????## ##????????????????????????????? | | # ##???????????###?????????????????????????????? | | #????????????????????????????????????????????? | | #####????????????????????????????????????????????? | | ?????????????????????????????????????????????????? | | ?????????????????????????????????????????????????? | | ?????????????????????????????????????????????????? | | ?????????????????????????????????????????????????? | +----------------------------------------------------+ Best States ------------- Heat Dissipation 28 Energy Generation 14 Energy Capacity 275 Matter Stores 300 Matter Capacity 300 Sight Range 16 Terrain Scan Density 10 Evasion (%) 50 Recoil Reduction 3 Item Schematics ----------------- Grenade Launcher | -9/Materials | Scanalyzed Robot Schematics ------------------ None Fabricated ------------ Nothing Alien Tech Used ----------------- None Achievements -------------- None Challenges ------------ None Game ------ Seed UtilityDiametricEdition Manual? 0 Play Time 00:16:48 Cumulative 17.3 hours Start 2024.12.09 @ 17:15:24 End 2024.12.09 @ 17:29:33 Sessions 1 Manual Loads 0 Difficulty Rogue Special Mode None Game No. 37 Rogue 37 Adventurer 0 Explorer 0 Win Type - Total 0 Types 0/0/0/0/0/0/0/0/0 Lore% 6 Gallery% 20 Achievement% 23 Wizard Run 0 Options --------- Layout 2 ASCII 0 Keyboard 0 Movement Mouse Keybinds 0 Fullscreen 2 Font 24/Terminus Map View 50x44 Zoom Use 0% Tactical HUD 1 Map Filters NONE Filters NONE Steam 1 RUN: cb49cb57-0d0c-4365-9f1b-9661391627f5